{"text_format":"1","workbook":"xlsx","n_sheets":2,"sheets":["RozpNav_DR","List1"],"not_rendered":{"charts":0,"images":0,"macros":0,"external_links":0,"defined_names":1,"comments":0,"pivot_tables":0},"unopened":[],"bounds":{"document_bytes":16777216,"sheet_cells":100000,"rows_first":2000,"rows_last":500,"rows_between":2000,"halvings":0,"cell_chars":16384,"cell_head_chars":4096},"cells_cut":0,"cells_raw":0,"read":"whole","date_system":"1900"}

{"sheet":"RozpNav_DR","index":0,"n_rows":763,"n_cols":8,"rows_kept":763,"cut":false,"hidden":false,"merged":[[12,0,12,6],[4,0,4,4],[1,0,1,1],[3,0,3,6],[0,2,1,5],[0,0,0,1],[11,0,11,6],[10,0,10,5],[9,0,9,6],[7,0,7,6],[5,0,5,6],[6,0,6,3],[2,0,2,6],[87,0,87,5],[84,0,84,6],[83,0,83,5],[29,0,29,5],[31,0,31,6],[30,0,30,5],[42,7,47,7],[92,0,92,5],[94,0,94,5],[762,0,762,5],[761,0,761,6],[759,0,759,5],[744,0,744,6],[741,0,741,5],[740,0,740,6],[738,0,738,5],[616,0,616,5],[100,0,100,6],[97,0,97,5],[96,0,96,6],[95,0,95,5],[88,0,88,6],[615,0,615,5],[607,0,607,5],[600,0,600,5],[590,0,590,5],[521,0,521,5],[495,0,495,5],[489,0,489,5],[482,0,482,5],[447,0,447,5],[442,0,442,5],[159,0,159,5],[140,0,140,5],[115,0,115,5],[111,0,111,5],[400,0,400,5],[287,0,287,5],[221,0,221,5],[175,0,175,5],[171,0,171,5],[622,0,622,5],[640,0,640,5],[651,0,651,5],[660,0,660,5],[662,0,662,5],[669,0,669,5],[664,7,666,7],[655,7,657,7],[687,0,687,5],[713,0,713,5],[722,0,722,5],[724,0,724,5],[727,0,727,5],[729,0,729,5],[737,0,737,5]]}
[null,null,"00248266 Město Humpolec"]
[]
["V návaznosti na usnesení Zastupitelstva města Humpolce ze dne 01. 03. 2023                                č. 54/3/ZM/2023 - Schválený rozpočet města Humpolce na rok 2023,                                                        Rada města Humpolce schvaluje:"]
["Rozpis schváleného rozpočtu na rok 2023"]
[]
[]
[null,null,null,null,null,"Číslo usnesení :","xxx/9/RM/2023"]
[]
[null,null,null,null,null,"Schváleno dne :","2023-03-15"]
[]
["Obsah rozpisu rozpočtu:"]
["závazný ukazatel=",null,null,null,null,null,null,"\"Z\""]
["Příjmy"]
["ODPA","POL","ORJ","ORG","NZUZ","Popis","Schválený rozpis rozpočtu (Kč)"]
[null,"1111",null,null,null,"Příjem z daně z příjmů fyzických osob placené plátci (závislá činnost)",36100000]
[null,"1112",null,null,null,"Příjem z daně z příjmů fyzických osob placené poplatníky (OSVČ)",2200000]
[null,"1113",null,null,null,"Příjem z daně z příjmů fyzických osob vybír.srážkou podle zvláštní sazby daně (kapit.výnosy)",7100000]
[null,"1121",null,null,null,"Příjem z daně z příjmů právnických osob",48750000]
[null,"1122",null,null,null,"Příjem z daně z příjmů právnických osob  za obce",15000000]
[null,"1211",null,null,null,"Příjem z daně z přidané hodnoty",117000000]
[null,"1335",null,null,null,"Příjem z poplatku za odnětí pozemku podle lesního zákona",5000]
[null,"1341",null,null,null,"Příjem z poplatku ze psů",250000]
[null,"1343",null,null,null,"Příjem z poplatku za užívání veřejného prostranství",150000]
[null,"1345",null,null,null,"Příjem z poplatku za obecní systém odpadového hospodářství",7500000]
[null,"1353",null,null,null,"Příjem za zkoušky z odborné způsobilosti od žadatelů o řidičské oprávnění",250000]
[null,"1361",null,null,null,"Příjem ze správních poplatků",4700000]
[null,"1381",null,null,null,"Příjem z daně z hazardních her s výjimkou dílčí daně z technických her",1500000]
[null,"1385",null,null,null,"Příjem z dílčí daně z technických her",19000000]
[null,"1511",null,null,null,"Příjem z daně z nemovitých věcí",9900000]
["Celkem za třídu Daňové příjmy",null,null,null,null,null,269405000]
["z toho sdílené daně POL 1111+1112+1113+1121+1211",null,null,null,null,null,{"$f":"G15+G16+G17+G18+G20","v":211150000}]
[]
["ODPA","POL","ORJ","ORG","NZUZ","Popis","Schválený rozpis rozpočtu (Kč)"]
["1039","2111",null,null,null,"Příjem z poskytování služeb a výrobků-lesní hospodářství-prodej dřeva",2000]
["2310","2111",null,null,null,"Příjem z poskytování služeb a výrobků-vodní hospodářství-vodné,stočné",55000000]
["3612","2111","0010",null,null,"BHS-Příjem z poskytování služeb a výrobků-zálohy na služby",7900000]
["3613","2111",null,null,null,"Příjem z poskytování služeb a výrobků-nebytové hospodářství (ČS, a.s.záloha na vodné)",10000]
["3725","2111",null,"0372500010",null,"Příjem z poskytování služeb-sběr a svoz kom.odpadů-odměna za vytříděné složky odpadu",3000000]
["3900","2111",null,null,null,"Příjem z poskytování služeb-ost.činnosti pro obyvatelstvo-poplatky za WC",20000]
["6171","2111",null,null,null,"Příjem z poskytování služeb a výrobků -činnost místní správy",10000]
["6171","2112",null,null,null,"Příjem z prodeje zboží (již nakoupeného za účelem prodeje)-prodej knih a publikací",2000]
["6171","2119",null,null,null,"Ostatní příjmy z vlastní činnosti-činnost místní správy-věcná břemena",120000]
["3111","2122",null,null,null,"Příjem z odvodů příspěvkových organizací - FIPO-MŠ",509000,"Z"]
["3113","2122",null,"0000000321",null,"Příjem z odvodů příspěvkových organizací - FIPO-ZŠ Hálkova",1040000]
["3113","2122",null,"0000000322",null,"Příjem z odvodů příspěvkových organizací - FIPO-ZŠ Hradská",801000]
["3231","2122",null,null,null,"Příjem z odvodů příspěvkových organizací - FIPO-ZUŠ",82000]
["3233","2122",null,null,null,"Příjem z odvodů příspěvkových organizací - FIPO-SVČ",282000]
["3319","2122",null,null,null,"Příjem z odvodů příspěvkových organizací - FIPO-MěKIS",714000]
["1039","2131",null,null,null,"Příjem z pronájmu nebo pachtu pozemků-ost.záležitosti lesního hospodářství",7260000]
["3639","2131",null,null,null,"Příjem z pronájmu nebo pachtu pozemků-komun.služby-ostatní",782000]
["2310","2132",null,null,null,"Příjem z pronájmu ostatních nemovitých věcí  a jejich částí-vodní hospodářství",121]
["3612","2132","0010",null,null,"BHS-Příjem z pronájmu ostatních nemovitých věcí  a jejich částí-nájemné byty",14700000]
["3613","2132",null,null,null,"Příjem z pronájmu ostatních nemov.věcí  a jejich částí-nebyt. hosp.-nájemné nebyt.prostor",6400000]
["3639","2132",null,null,null,"Příjem z pronájmu ostatních nemovitých věcí  a jejich částí-komun.služby-ostatní pronájmy",6000]
["6221","2132",null,null,null,"Příjem z pronájmu ostatních nemovitých věcí  a jejich částí-humanitární zahr.pomoc přímá",50000]
["3639","2133",null,null,null,"Příjem z pronájmu nebo pachtu movitých věcí-komunální služby",175000]
["3632","2139",null,null,null,"Ostatní příjmy z pronájmu nebo pachtu majetku-pohřebnictví-hrobová místa",200000]
["3639","2139",null,null,null,"Ostatní příjmy z pronájmu nebo pachtu majetku-komun.služby-movité věci-na reklamní účely",100000]
["6310","2141",null,null,null,"Příjem z úroků-bankovní účty",5000000]
["6310","2141",null,null,null,"Příjem z úroků-bankovní účty-sociální fond",10000]
["2299","2143",null,null,null,"Kurzové rozdíly v příjmech-ostatní záležitosti v dopravě",2000]
["2169","2212",null,null,null,"Příjem sankčních plateb přijatých od jiných subjektů-pokuty Stav.úřad",10000]
["2212","2212",null,null,null,"Příjem sankčních plateb přijatých od jiných subjektů",126000]
["2299","2212",null,null,null,"Příjem sankčních plateb přijatých od jiných subjektů-doprava",400000]
["3612","2212","0010",null,null,"BHS-Příjem sankčních plateb přijatých od jiných subjektů-úroky z prodlení",20000]
["3769","2212",null,null,null,"Příjem sankčních plateb přijatých od jiných subjektů-životní prostředí",50000]
["5311","2212",null,null,null,"Příjem sankčních plateb přijatých od jiných subjektů-veřejný pořádek-přestupky",70000]
["3111","2229",null,null,null,"Ostatní přijaté vratky transferů-neinvestičního příspěvku na energie-MŠ",16912]
["3113","2229",null,"0000000321",null,"Ostatní přijaté vratky transferů-neinvestičního příspěvku na energie-ZŠ Hálkova",348000]
["3113","2229",null,"0000000322",null,"Ostatní přijaté vratky transferů-investičního příspěvku-ZŠ Hradská",180997.55]
["3319","2229",null,null,null,"Ostatní přijaté vratky transferů-neinvestičního příspěvku na energie-MěKIS",235000]
["6402","2229",null,"0323300001",null,"Přijatá vratka-SVČ-neinv.průtok.dotace Míčkování anebo zatočíme s rýmou a kašlem",5843]
["6402","2229",null,null,null,"Finanční vypořádání-vratky veřejnopr.dotací r.2022",476434]
["6171","2310",null,null,null,"Příjem z prodeje krátkodobého a drobného dlouh. neinv.majetku-činnost místní správy",1000]
["6171","2322",null,null,null,"Příjem z pojistných náhrad-činnost místní správy",100000]
["2169","2324",null,null,null,"Přijaté neinvestiční příspěvky a náhrady-náklady řízení-Stav.úřad",2000]
["2299","2324",null,null,null,"Přijaté neinvestiční příspěvky a náhrady-ost.záležitosti v dopravě-náklady řízení",10000]
["3632","2324",null,null,null,"Přijaté neinvestiční příspěvky a náhrady-pohřebnictví-náhrady za cizí zesnulé",50000]
["5311","2324",null,null,null,"Přijaté neinvestiční příspěvky a náhrady-veřejný pořádek-náklady řízení",5000]
["6171","2324",null,null,null,"Přijaté neinvestiční příspěvky a náhrady-činnost místní správy",5000]
["6171","2329",null,null,null,"Ostatní nedaňové příjmy-činnost místní správy-územní plán, úroky z prodlení, pohř.,",10000]
[null,"2412",null,"0363900041",null,"Splátky půjč. prostředků-TS-bezúročná zápůjčka",15000000]
[null,"2460",null,null,null,"Splátky půjčených prostředků od fyzických osob do SF",10000]
["Celkem za třídu Nedaňové příjmy",null,null,null,null,null,121309307.55]
[]
["ODPA","POL","ORJ","ORG","NZUZ","Popis","Schválený rozpis rozpočtu (Kč)"]
["3639","3111",null,null,null,"Komunální služby a úz.rozvoj-příjem z prodeje pozemků",300000]
["Celkem za třídu Kapitálové příjmy",null,null,null,null,null,300000]
[]
["ODPA","POL","ORJ","ORG","NZUZ","Popis","Schválený rozpis rozpočtu (Kč)"]
[null,"4111",null,"0000098008","98008","Neinv.přijaté transfery z VPS SR-Volba prezidenta ČR",594000]
[null,"4112",null,null,null,"Neinvestiční přijaté transfery ze SR v rámci souhrnného dotačního vztahu",22497900]
["Neinvestiční přijaté transfery celkem",null,null,null,null,null,{"$f":"SUM(G91:G92)","v":23091900}]
[null,"4222",null,"0617100027",null,"Investiční přij.transfer od kraje-Napojení LPR kamer PČR na opt. síť a trasování-směr Želiv",209206]
["Investiční přijaté transfery celkem",null,null,null,null,null,{"$f":"SUM(G94)","v":209206}]
["Celkem za třídu Přijaté transfery",null,null,null,null,null,23301106]
[]
["Celkem Příjmy",null,null,null,null,null,414315413.55000001]
[]
[]
["Výdaje"]
["ODPA","POL","ORJ","ORG","NZUZ","Popis","Schválený rozpis rozpočtu (Kč)"]
["1014","5137",null,"0101400001",null,"Péče o opuštěná zvířata",10000]
["1014","5169",null,"0101400001",null,"Péče o opuštěná zvířata",400000]
["1014","5169",null,"0101400002",null,"Deratizace",198000]
["1014","5169",null,"0101400003",null,"Kastrace koček",20000]
["1014","5492",null,"0101400003",null,"Kastrace koček",50000]
["1039","5169",null,"0103900001",null,"Lesní hosp.-odborný lesní hospodář",270000]
["1039","5169",null,"0103900004",null,"Ostatní lesnické práce",20000]
["1039","5171",null,"0103900005",null,"Opravy lesních cest",600000]
["1039","5179",null,"0103900006",null,"Sdružení vlastníků obecních a soukromých lesů ČR-členský příspěvek",12000]
["Celkem za oddíl 10 - Zemědělství a lesní hospodářství",null,null,null,null,null,{"$f":"SUM(G103:G111)","v":1580000},"Z"]
["2141","5137",null,"0214100003",null,"Farmářské trhy-DDHM",15000]
["2141","5139",null,"0214100001",null,"Farmářské trhy-materiál",20000]
["2141","5169",null,"0214100002",null,"Farmářské trhy-služby",140000]
["Celkem za oddíl 21 - Průmysl, stavebnictví, obchod, služby",null,null,null,null,null,{"$f":"SUM(G113:G115)","v":175000},"Z"]
["2212","5166",null,"0221200001",null,"Studie komunikací",500000]
["2212","5166",null,"0221200157",null,"Dopravní model města",300000]
["2212","5166",null,"0221200158",null,"Křižovatka Billa-studie",400000]
["2212","5169",null,"0221200002",null,"Čištění komunikací",3100000]
["2212","5169",null,"0221200003",null,"Čištění komunikací-vybrané akce",120000]
["2212","5169",null,"0221200004",null,"Čištění komunikací-psí exkrementy",700000]
["2212","5169",null,"0221200005",null,"Zimní údržba komunikací",2800000]
["2212","5171",null,"0221200006",null,"Dopravní značení-zrcadla",90000]
["2212","5171",null,"0221200008",null,"Údržba kanalizačních vpustí",400000]
["2212","5171",null,"0221200009",null,"Opravy komunikací-město",2000000]
["2212","5171",null,"0221200010",null,"Opravy komunikací-místní části",2000000]
["2212","5171",null,"0221200021",null,"Dopravní značení-město",300000]
["2212","5171",null,"0221200022",null,"Údržba přechodů",300000]
["2212","5171",null,"0221200062",null,"Dopravní značení-místní části",130000]
["2212","5171",null,"0221200072",null,"Opravy komunikací-metoda infra",700000]
["2212","5171",null,"0221200140",null,"Označení ulic-nové cedule",180000]
["2212","5171",null,"0221200149",null,"Radary měření rychlosti-opravy",100000]
["2219","5166",null,"0221900001",null,"Studie a projekty chodníků",250000]
["2219","5169",null,"0221900007",null,"Zimní údržba chodníků",1200000]
["2219","5169",null,"0221900074",null,"Mlžící rám město-zařízení pro osvěž.vzduchu-instalace",5000]
["2219","5171",null,"0221900002",null,"Opravy chodníků",450000]
["2221","5171",null,"0222100001",null,"Opravy autobusových čekáren",100000]
["2229","5169",null,"0222900001",null,"Likvidace autovraků",20000]
["2292","5213",null,"0229200002",null,"Dopravní obslužnost",80000]
["Celkem za oddíl 22 - Doprava",null,null,null,null,null,{"$f":"SUM(G117:G140)","v":16225000},"Z"]
["2310","5151",null,"0231000001",null,"Voda-nákup pitné vody",8000000]
["2310","5164",null,"0231000001",null,"Voda-nákup pitné vody",4000]
["2310","5166",null,"0231000002",null,"Voda-nové studie",100000]
["2310","5169",null,"0231000010",null,"Vodovod-provozovatelská smlouva",14200000]
["2310","5169",null,"0231000057",null,"Oprava vodovodu ul.5.května (PD)",160000]
["2310","5169",null,"0231000058",null,"Oprava vodovodu ul.Hradská (PD)",130000]
["2310","5169",null,"0231000059",null,"Oprava vodovodu ul. Vosmíkova (PD)",120000]
["2310","5171",null,"0231000011",null,"Vodovod-běžné opravy",2000000]
["2321","5166",null,"0232100001",null,"Kanalizace-studie",250000]
["2321","5166",null,"0232100042",null,"Čištění Světlice-Plačkov (studie proveditelnosti)",500000]
["2321","5169",null,"0232100004",null,"Provoz ČOV v LTRN",300000]
["2321","5169",null,"0232100007",null,"Kanalizace-provozovatelská smlouva",17100000]
["2321","5169",null,"0232100049",null,"Oprava kanalizace ul.5.května (PD)",120000]
["2321","5169",null,"0232100050",null,"Oprava kanalizace ul.Hradská (PD)",200000]
["2321","5169",null,"0232100051",null,"Oprava kanalizace ul. Vosmíkova (PD)",160000]
["2321","5171",null,"0232100008",null,"Kanalizace-běžné opravy",2000000]
["2341","5169",null,"0234100001",null,"Oprava návesních rybníků Petrovice",200000]
["2341","5171",null,"0234100001",null,"Oprava návesních rybníků Petrovice",6500000]
["Celkem za oddíl 23 - Vodní hospodářství",null,null,null,null,null,{"$f":"SUM(G142:G159)","v":52044000},"Z"]
["3111","5331",null,"0000000301",null,"Neinvestiční příspěvek MŠ (provoz)",6090000,"Z"]
["3111","5331",null,"0311100301",null,"Neinv. příspěvek MŠ spec.pedagog",100000,"Z"]
["3111","5901",null,"0311100005",null,"Provoz a drobné vybavení pracoviště a zahrady MŠ Podhrad",2000000]
["3113","5166",null,"0311300004",null,"Rozšíření kapacit základních škol v Humpolci",800000]
["3113","5331",null,"0000000321",null,"Neinvestiční příspěvek ZŠ Hálkova (provoz)",10587000,"Z"]
["3113","5331",null,"0000000322",null,"Neinvestiční příspěvek ZŠ Hradská (provoz)",7992000,"Z"]
["3113","5331",null,"0311300001",null,"Neinv. příspěvek ZŠ  spec. pedagog, školní psycholog",400000,"Z"]
["3113","5331",null,"0999000321",null,"Neinv. příspěvek ZŠ  Hálkova-participativní rozpočet",100000,"Z"]
["3113","5331",null,"0999000322",null,"Neinv. příspěvek ZŠ  Hradská-participativní rozpočet",100000,"Z"]
["3119","5169",null,"0311900001",null,"Projekt Post Bellum",150000]
["3121","5339",null,"0999312101",null,"Dar particip.rozpočet-Gymnázium Dr.A.Hrdličky",100000]
["31 - Vzdělávání",null,null,null,null,null,{"$f":"SUM(G161:G171)","v":28419000},"Z"]
["3231","5331",null,"0000000324",null,"Neinvestiční příspěvek ZUŠ (provoz)",880000,"Z"]
["3233","5331",null,"0000000325",null,"Neinvestiční příspěvek SVČ (provoz)",3866000,"Z"]
["3299","5222",null,"0329900001",null,"Dotace B2-Vzdělávání pro budoucnost (činnost)",18000,"Z"]
["32 - Vzdělávání",null,null,null,null,null,{"$f":"SUM(G173:G175)","v":4764000},"Z"]
["3312","5222",null,"0331200001",null,"Dotace B2-Spol.pro rozvoj kulturních tradic Vysočiny (hudební slavnosti)",100000,"Z"]
["3313","5221",null,"0331300001",null,"Dotace B2-Castrum (filmový a folkový festival)",58000,"Z"]
["3319","5151",null,"0331900020",null,"Spolkový dům čp.59-studená voda",400000]
["3319","5153",null,"0331900020",null,"Spolkový dům čp.59-plyn",500000]
["3319","5154",null,"0331900020",null,"Spolkový dům čp.59-el.energie",1000000]
["3319","5166",null,"0331900024",null,"Studie využití městského bloku \"SPOLKOVÝ DŮM-HUSOVA\"",1000000]
["3319","5169",null,"0331900012",null,"Varhanní koncerty Concentus Moraviae-festival Varhanní Vysočina",50000]
["3319","5169",null,"0331900016",null,"Administrace dotace PKC-Centrum Mikádo",10000]
["3319","5169",null,"0331900020",null,"Spolkový dům čp.59-nákup ost.služeb",100000]
["3319","5169",null,"0331900021",null,"TS-odměna správa-Spolk.dům čp.59",320000]
["3319","5171",null,"0331900020",null,"Spolkový dům čp.59-opravy a udržování",1000000]
["3319","5331",null,"0000000376",null,"Neinvestiční příspěvek MěKIS (provoz)",17099000,"Z"]
["3319","5339",null,"0312100001",null,"Dotace B3-Gymnázium Dr.A.Hrdličky (projekty školy,spolupráce se ZUŠ a ZŠ)",54000,"Z"]
["3319","5339",null,"0312200001",null,"Dotace B2-Česká zemědělská akademie (akce školy)",17000,"Z"]
["3319","5493",null,"0331900001",null,"Dotace B2-Zabloudilová (pořádání sletu čarodějnic)",15000,"Z"]
["3319","5493",null,"0331900022",null,"Dotace B2-Háva Samuel (podpora amat.loutk.souboru Zlá sazenice)",15000,"Z"]
["3319","5493",null,"0331900023",null,"Dotace B3-Šarfová Blanka (vydání a tisk knihy beletrie s historickou tematikou)",10000,"Z"]
["3319","5901",null,"0000000020",null,"Rezerva na Dotace B \"Zásad\"-obl. kultury",118000,"Z"]
["3322","5154",null,"0332200010",null,"Budova čp.338 Zichpil",30000]
["3322","5166",null,"0332200001",null,"Státní památková péče-posudky",20000]
["3322","5169",null,"0332200002",null,"Hrad Orlík-provozní výdaje",200000]
["3322","5169",null,"0332200003",null,"Budova čp.253 Dol. náměstí-údržba, revize",30000]
["3322","5169",null,"0332200010",null,"Budova čp.338 Zichpil - revize, služby",3000]
["3322","5171",null,"0332200002",null,"Hrad Orlík-provozní výdaje",500000]
["3322","5171",null,"0332200003",null,"Budova čp.253 Dolní nám.-opravy",100000]
["3322","5171",null,"0332200006",null,"St.pam.péče-opr.neudržitelných památek",10000]
["3322","5171",null,"0332200009",null,"Budova čp.250 Dolní náměstí",30000]
["3322","5171",null,"0332200010",null,"Budova čp.338 Zichpil-opravy",170000]
["3326","5154",null,"0332600004",null,"Toleranční kostel-el.energie",8000]
["3326","5169",null,"0332600001",null,"Kapličky-revize",25000]
["3326","5171",null,"0332600002",null,"Boží muka, křížky-opravy",10000]
["3326","5171",null,"0332600003",null,"Kapličky-opravy",160000]
["3326","5171",null,"0332600005",null,"Zvonička Hněvkovice-oprava",5000]
["3326","5901",null,"0332600022",null,"Rezerva-Dotace na opravu fasád historických objektů",1000000]
["3330","5223",null,"0333000003",null,"Dotace D2-Českobratrská církev evangel. (oprava v areálu evang.kostela)",275000,"Z"]
["3330","5223",null,"0333000004",null,"Dotace C1-Římskokatolická církev (výchova mládeže)",12000,"Z"]
["3330","5223",null,"0333000005",null,"Dotace D2-Římskokat. církev (restaur. kostela Sv.Mikuláše)",225000,"Z"]
["3392","5222",null,"0339200001",null,"Dotace B2-Divadlo za Komínem (představení pro děti)",50000,"Z"]
["3399","5139",null,"0339900001",null,"KPOZ-materiál",70000]
["3399","5169",null,"0339900002",null,"KPOZ-služby",30000]
["3399","5194",null,"0339900003",null,"KPOZ-věcné dary",700000]
["3399","5213",null,"0339900011",null,"Dotace B2-MŠ a ZŠ Bambi (kult.akce)",10000,"Z"]
["3399","5222",null,"0339900008",null,"Dotace B3-Společnost pro rozvoj Humpolecka (Den MAS)",5000,"Z"]
["3399","5222",null,"0339900010",null,"Dotace B2-Svařený sáně (kult.program advent)",30000,"Z"]
["3399","5222",null,"0437900005",null,"Dotace C1-Svaz tělesně postižených Humpolec (činnost)",11000,"Z"]
["Celkem za oddíl 33 - Kultura, církve",null,null,null,null,null,{"$f":"SUM(G177:G221)","v":25585000},"Z"]
["3412","5137",null,"0341200109",null,"Zdravotní vybavení 1.pomoc-ZS a Žabák",50000]
["3412","5137",null,"0341200121",null,"Vybavení sportovišť-místní části",100000]
["3412","5137",null,"0341200122",null,"Vybavení sportovišť-město",40000]
["3412","5139",null,"0341200118",null,"Městská hřiště-materiál",10000]
["3412","5169",null,"0341200029",null,"Sportoviště-revize, kontroly, služby ostatní",500000]
["3412","5169",null,"0341200088",null,"Revize motorů atrakcí",100000]
["3412","5169",null,"0341200089",null,"Zimní stadion-administrace",15000]
["3412","5169",null,"0341200119",null,"TS-sportoviště-provoz-příkazní smlouva",8000000]
["3412","5171",null,"0341200001",null,"Údržba městských hřišť",1000000]
["3412","5171",null,"0341200002",null,"Údržba hřišť v místních částech",700000]
["3412","5171",null,"0341200003",null,"Sportovní areál Okružní-opravy",1300000]
["3412","5171",null,"0341200050",null,"Fotbalové hřiště-údržba přírodní trávy",450000]
["3412","5171",null,"0341200063",null,"Tenisová hala Hálkova-údržba",20000]
["3412","5171",null,"0341200067",null,"Tenisová hala Hradská-údržba",20000]
["3412","5171",null,"0341200123",null,"Tenisová hala Hálkova-výmalba",150000]
["3412","5171",null,"0341200124",null,"ZS generální oprava rolby",300000]
["3412","5171",null,"0341200125",null,"ZS výmalba šaten (bočních)+chodba",150000]
["3419","5139",null,"0341900026",null,"Sportovní akce města a jejich podpora (např. Kemp vítězů)-materiál",5000]
["3419","5169",null,"0341900026",null,"Sportovní akce města a jejich podpora (např. Kemp vítězů)-služby",40000]
["3419","5175",null,"0341900026",null,"Sportovní akce města a jejich podpora (např. Kemp vítězů)-pohoštění",5000]
["3419","5221",null,"0341900008",null,"Dotace A3-Soutěže podkovy (Zlatá podkova)",175000,"Z"]
["3419","5222",null,"0341900002",null,"Dotace A1-TJ Jiskra (činnost)",4887000,"Z"]
["3419","5222",null,"0341900003",null,"Dotace A1-TJ Jiskra (trenéři mládeže)",707000,"Z"]
["3419","5222",null,"0341900004",null,"Dotace A1-LTC (činnost, nájemné)",1345000,"Z"]
["3419","5222",null,"0341900005",null,"Dotace A1-LTC (trenéři mládeže)",80000,"Z"]
["3419","5222",null,"0341900013",null,"Dotace C1-Spolek přátel Krasoňova (pořádání akcí)",16000,"Z"]
["3419","5222",null,"0341900014",null,"Dotace C1-TJ Krasoňov (sportovní a kulturní akce)",16000,"Z"]
["3419","5222",null,"0341900016",null,"Dotace C1- Vysočina Petrovice z.s. (sportovní a kulturní akce)",57000,"Z"]
["3419","5222",null,"0341900017",null,"Dotace A1-TJ Plačkov (provozní náklady, provoz hřiště)",60000,"Z"]
["3419","5222",null,"0341900018",null,"Dotace A3-Automotoklub (závody)",440000,"Z"]
["3419","5222",null,"0341900019",null,"Dotace A1-Jezdecký klub (jezdecké závody)",26000,"Z"]
["3419","5222",null,"0341900021",null,"Dotace A1-Jezdecký klub (trenéři mládeže)",20000,"Z"]
["3419","5222",null,"0551200004",null,"Dotace A1-SDH Hněvkovice (trenéři mládeže)",30000,"Z"]
["3419","5909",null,"0341900030",null,"Sportoviště-místní části-ost.neinv.výdaje",20000]
["3421","5137",null,"0342100002",null,"Dopravní hřiště-nová kola",30000]
["3421","5139",null,"0342100002",null,"Dopravní hřiště-odměny při soutěžích",12000]
["3421","5169",null,"0342100002",null,"Dopravní hřiště-služby DSMC",5000]
["3421","5171",null,"0342100001",null,"Dopravní hřiště-opravy kol",15000]
["3421","5175",null,"0342100002",null,"Dopravní hřiště-pohoštění",8000]
["3421","5222",null,"0342100003",null,"Dotace A1-AFC (činnost)",2340000,"Z"]
["3421","5222",null,"0342100004",null,"Dotace A1-AFC (trenéři mládeže)",220000,"Z"]
["3421","5222",null,"0342100005",null,"Dotace C1-KČT Šlápoty Hněvkovice (činnost)",82000,"Z"]
["3421","5222",null,"0342100007",null,"Dotace C1-Junák (pořízení IT vybavení)",63000,"Z"]
["3429","5169",null,"0342900026",null,"Humpolecké vánoční kluziště",600000]
["3429","5222",null,"0234900001",null,"Dotace A1-Český rybářský svaz (trenéři mládeže)",10000,"Z"]
["3429","5222",null,"0234900002",null,"Dotace C1-Český rybářský svaz (činnost)",50000,"Z"]
["3429","5222",null,"0342900002",null,"Dotace C2-Klub Veteráni (přehlídka historických vozidel)",9000,"Z"]
["3429","5222",null,"0342900003",null,"Dotace C1-Turisté Humpolec (činnost)",22000,"Z"]
["3429","5222",null,"0342900004",null,"Dotace C1-Klub českých turistů  (činnost)",66000,"Z"]
["3429","5222",null,"0342900005",null,"Dotace C1-Senioři ČR Humpolec (volnočasové aktivity,kultura)",58000,"Z"]
["3429","5222",null,"0342900006",null,"Dotace C1-Svaz chovatelů (výstava drobného zvířectva)",10000,"Z"]
["3429","5222",null,"0342900008",null,"Dotace C1-Český svaz včelařů (údržba a opr.skanz,výroba přístřešků pro venk.exponáty)",51000,"Z"]
["3429","5222",null,"0342900010",null,"Dotace C1-Myslivecký spolek Vysočina Petrovice (obnova zeleně, nájem)",23000,"Z"]
["3429","5222",null,"0342900014",null,"Dotace A3-Dotace-Basketbal.klub 3x3 Humpolec (provoz)",40000,"Z"]
["3429","5493",null,"0331900003",null,"Dotace C1-Krejčí (celoroční akce v Plačkově)",30000,"Z"]
["3429","5493",null,"0331900005",null,"Dotace C1-Vyvadilová (celoroční akce Rozkoš)",40000,"Z"]
["3429","5493",null,"0342900001",null,"Dotace A2-Marek David (triatlon)",14000,"Z"]
["3429","5493",null,"0342900012",null,"Dotace A2-Jirák Lukáš (sport.akce-běh)",12000,"Z"]
["3429","5493",null,"0342900013",null,"Dotace A2-Prokůpek Vít (závody horských kol)",6000,"Z"]
["3429","5493",null,"0342900015",null,"Dotace A2-Macháček Jan (cyklistický závod)",9000,"Z"]
["3429","5493",null,"0342900016",null,"Dotace A3-Havlová Anna (jezdecké soutěže-mezin.)",15000,"Z"]
["3429","5493",null,"0342900020",null,"Dotace C2-Polidarová Petra (uspořádání herního odpoledne)",3000,"Z"]
["3429","5493",null,"0342900025",null,"Dotace A3-Sukdolák Matěj (mezin.jezd.soutěže,ME,OH)",64000,"Z"]
["3429","5493",null,"0342900027",null,"Dotace C2-Horčic Miloš (turnaj v nohejbale)",3000,"Z"]
["3429","5901",null,"0000000030",null,"Rezerva na Dotace C \"Zásad\"-obl.ost.zájm.činností",138300,"Z"]
["Celkem za oddíl 34 - Sport a zájmová činnost",null,null,null,null,null,{"$f":"SUM(G223:G287)","v":24882300},"Z"]
["3612","5137","0010","0000000404",null,"BHS-DDHM",35000]
["3612","5139","0010","0000000404",null,"BHS-materiál",45000]
["3612","5151","0010","0000000404",null,"BHS-studená voda",1400000]
["3612","5152","0010","0000000404",null,"BHS-teplo",7200000]
["3612","5153","0010","0000000404",null,"BHS-plyn",20000]
["3612","5154","0010","0000000404",null,"BHS-elektrická energie",900000]
["3612","5157","0010","0000000404",null,"BHS-teplá voda",1440000]
["3612","5161","0010","0000000404",null,"BHS-poštovní služby",50000]
["3612","5162",null,"0000000404",null,"Bytové hosp.-služby elektronických komunikací-tel.výtah čp.730",10000]
["3612","5169","0010","0361200009",null,"BHS-sml. s TS-správa bytů",1100000]
["3612","5169","0010","0361200010",null,"BHS-provozní služby",1100000]
["3612","5171","0010","0000000019",null,"BHS-Fugnerova 19-drobná údržba bytových domů",400000]
["3612","5171","0010","0000000073",null,"BHS-Masarykova 73-drobná údržba bytových domů",600000]
["3612","5171","0010","0000000074",null,"BHS-Masarykova 74-drobná údržba bytových domů",300000]
["3612","5171","0010","0000000245",null,"BHS-Jana Zábrany 245-drobná údržba bytových domů",300000]
["3612","5171","0010","0000000601",null,"BHS-Hálkova 601-drobná údržba bytových domů",800000]
["3612","5171","0010","0000000730",null,"BHS-Školní 730-drobná údržba bytových domů",500000]
["3612","5171","0010","0000000926",null,"BHS-Hálkova 926-drobná údržba bytových domů",300000]
["3612","5171","0010","0000000927",null,"BHS-Hálkova 927-drobná údržba bytových domů",300000]
["3612","5171","0010","0000001027",null,"BHS-Hálkova 1027-drobná údržba bytových domů",600000]
["3612","5171","0010","0000001028",null,"BHS-Máchova 1028-drobná údržba bytových domů",400000]
["3612","5171","0010","0000001039",null,"BHS-Hálkova 1039-drobná údržba bytových domů",300000]
["3612","5171","0010","0000001313",null,"BHS-Na Rybníčku 1313-drobná údržba bytových domů",500000]
["3612","5171","0010","0000001326",null,"BHS-Na Rybníčku 1326-drobná údržba bytových domů",500000]
["3612","5171","0010","0000001353",null,"BHS-Komenského 1353-drobná údržba bytových domů",600000]
["3612","5171","0010","0000001607",null,"BHS-Máchova 1607-drobná údržba bytových domů",400000]
["3612","5171","0010","0000001608",null,"BHS-Jihlavská 1608-drobná údržba bytových domů",400000]
["3612","5909","0010","0361200012",null,"BHS-vratka přeplatků z vyúčt.služeb",1000000]
["3613","5137",null,"0361300117",null,"Nebyt.hosp.-čp.730 Školní-DDHM",350000]
["3613","5137",null,"0361300181",null,"Nebyt.hosp.-polikliniky-vybavení čekáren (věšáky,lavice,výmalba )",900000]
["3613","5139",null,"0361300001",null,"Nebytové hospodářství-označení budov čp.",30000]
["3613","5139",null,"0361304424",null,"Nebytové hosp.-veřejné WC-materiál",20000]
["3613","5151",null,"0361300003",null,"Nebytové prostory ostatní-studená voda",120000]
["3613","5152",null,"0361300003",null,"Nebytové-teplo",240000]
["3613","5153",null,"0361300003",null,"Nebytové-plyn",500000]
["3613","5154",null,"0361300003",null,"Nebytové-elektrická energie",900000]
["3613","5169",null,"0361300005",null,"Nebytové-revize",500000]
["3613","5169",null,"0361300007",null,"Nebytové-TS-odměna za správu",730000]
["3613","5169",null,"0361300084",null,"Nebytové-provoz zabezpečovacího zařízení na DZS a poliklinice",60000]
["3613","5169",null,"0361300137",null,"Nebyt.hosp.-altán Stromovka-odměna",60000]
["3613","5169",null,"0361304424",null,"Nebytové-veřejné WC-provozní služby",1500000]
["3613","5171",null,"0361300033",null,"Nebytové hosp.-poliklinika-čp. 885-drobná údržba",400000]
["3613","5171",null,"0361300040",null,"Nebytové hosp.-město-drobná údržba",250000]
["3613","5171",null,"0361300041",null,"Nebytové hosp.-OV místní části-drobná údržba",700000]
["3613","5171",null,"0361300055",null,"Nebyt.hosp.-čp.389 DZS - drobná údržba",300000]
["3613","5171",null,"0361300078",null,"Nebyt.hosp.-čp.422 - drobná údržba HZS",100000]
["3613","5171",null,"0361300081",null,"Nebyt.hosp.-čp.934 SOS - drobná údržba",150000]
["3613","5171",null,"0361300087",null,"Nebyt.hosp.-čp.803 LTRN - drobná údržba",500000]
["3613","5171",null,"0361300088",null,"Nebyt.hosp.-čp.391 Husova-škola-drobná údržba",150000]
["3613","5171",null,"0361300093",null,"Nebyt.hosp.-čp.391 Husova-ŠJ-drobná údržba",100000]
["3613","5171",null,"0361300113",null,"Nebyt.hosp.-čp. 422-RZS-drobná údržba",100000]
["3613","5171",null,"0361300116",null,"Nebyt.hosp.-čp.1353-Komenského-drobná údržba",200000]
["3613","5171",null,"0361300117",null,"Nebyt.hosp.-čp.730 Školní-drobná údržba",300000]
["3613","5171",null,"0361300119",null,"Nebyt.hosp.-čp. 1607 Máchova-drobná údržba",50000]
["3613","5171",null,"0361300120",null,"Nebyt.hosp.-čp.245 J.Zábrany-drobná údržba(světla,malba stropu)",50000]
["3613","5171",null,"0361300139",null,"Nebyt.hosp.-budovy SDH MČ",250000]
["3613","5171",null,"0361300143",null,"Nebyt.hosp.-čp.885-opravy úklidových komor",250000]
["3613","5171",null,"0361300147",null,"Nebyt.hosp.-čp.803 LTRN-oprava krytiny,svody stříšek nad vstupy",150000]
["3613","5171",null,"0361300153",null,"Nebyt.hosp.-altán Stromovka-drobná údržba,opravy",200000]
["3613","5171",null,"0361300161",null,"Nebyt.hosp.-čp.389-DZS-výměna světel",50000]
["3613","5171",null,"0361300164",null,"Nebyt.hosp.-čp.245-výměna plyn.kotle-kotelna",100000]
["3613","5171",null,"0361300165",null,"Nebyt.hosp.-DÚ,oprava městského mobiliáře",100000]
["3613","5171",null,"0361300171",null,"Nebyt.hosp.-čp.389-oprava soc.zařízení v 1NP",120000]
["3613","5171",null,"0361300179",null,"Nebyt.hosp.-čp.252-budova ČS-drobná údržba",200000]
["3613","5171",null,"0361300182",null,"Nebytové hosp.-OV Hněvkovice",600000]
["3613","5171",null,"0361300183",null,"Nebytové hosp.-OV Kletečná",600000]
["3613","5171",null,"0361300184",null,"Nebytové hosp.-oprava střechy garáží ul.Palackého",250000]
["3613","5171",null,"0361304424",null,"Nebytové hosp.-veřejné WC",150000]
["3631","5154",null,"0363100001",null,"VO-elektrická energie",5300000]
["3631","5169",null,"0363100002",null,"VO-provoz, služby",1500000]
["3631","5169",null,"0363100010",null,"VO-vánoční výzdoba-služby ostatní",300000]
["3631","5169",null,"0363100061",null,"Certifikace ISO 50001",350000]
["3631","5171",null,"0363100003",null,"VO-údržba fontány a pítka",90000]
["3631","5171",null,"0363100004",null,"VO-běžné opravy, údržba",500000]
["3632","5137",null,"0363200023",null,"Pohřebnictví-hřbitov,urnový háj-DDHM",15000]
["3632","5137",null,"0363200025",null,"Pohřebnictví-úprava interiéru čp.934 SOS-DDHM",50000]
["3632","5139",null,"0363200019",null,"Pohřebnictví-hřbitov-materiál",10000]
["3632","5151",null,"0363200005",null,"Pohřebnictví-hřbitov,urnový háj-studená voda",60000]
["3632","5154",null,"0363200005",null,"Pohřebnictví-hřbitov,urnový háj-elektrická energie",90000]
["3632","5169",null,"0363200001",null,"Pohřebnictví-hřbitov-služby",600000]
["3632","5169",null,"0363200002",null,"Pohřebnictví-urnový háj-služby",400000]
["3632","5169",null,"0363200003",null,"Pohřebnictví-hřbitov,UH-údržba stromů, výsadby",385000]
["3632","5169",null,"0363200025",null,"Pohřebnictví-úprava interiéru čp.934 SOS-služby",300000]
["3632","5171",null,"0363200012",null,"Pohřebnictví-hřbitov-opravy pomníků",16000]
["3632","5171",null,"0363200014",null,"Pohřebnictví-hřbitov,UH-opravy",50000]
["3632","5171",null,"0363200024",null,"Pohřebnictví-hřbitov-lakování cest",100000]
["3632","5171",null,"0363200025",null,"Pohřebnictví-úprava interiéru čp.934 SOS-opravy a údržba",250000]
["3632","5811",null,"0363200011",null,"Pohřebnictví-náklady za cizí zesnulé",150000]
["3635","5169",null,"0363500010",null,"Územní plán-komise pro architekturu a urbanismus",400000]
["3635","5169",null,"0363500013",null,"Územní plán-koordinátor investic, KAU a územního plánování",500000]
["3639","5042",null,"0000000999",null,"Komunální služby-participativní rozpočet-licence program",10000]
["3639","5137",null,"0363900022",null,"Komunální služby-vývěsky-DDHM",80000]
["3639","5164",null,"0363900001",null,"Komunální služby-nájemné za užívané pozemky",140000]
["3639","5166",null,"0363900038",null,"Komunální služby-ZTV Kletečná-studie",100000]
["3639","5166",null,"0363900042",null,"Komunální služby-územní studie",500000]
["3639","5166",null,"0363900043",null,"Komunální služby-územní studie Plačkov",500000]
["3639","5166",null,"0363900045",null,"Komunální služby-studie revitalizace Horního a Dolního nám.",1000000]
["3639","5168",null,"0363900005",null,"Aktualizace a správa map DTTM a pasportů",600000]
["3639","5168",null,"0363900010",null,"Aktualizace dat ÚAP a rozbory",400000]
["3639","5169",null,"0363900002",null,"Komunální služby-geodetické práce, znalecké posudky",350000]
["3639","5169",null,"0363900039",null,"Komunální služby-dezinfekce města",100000]
["3639","5169",null,"0363900044",null,"Komunální služby-manuál veřejného prostranství",500000]
["3639","5169",null,"0363900046",null,"Komunální služby-Rada dětí a mládeže-příspěvek na zapojení do grant.progr.",30000]
["3639","5171",null,"0363900023",null,"Komunální služby-vývěsky-opravy",60000]
["3639","5362",null,"0363900014",null,"Komunální služby-kolky na vklady do KN,popl.ZPF a LPF",50000]
["3639","5613",null,"0363900041",null,"TS-bezúročná zápůjčka 2023",15000000]
["3699","5179",null,"0369900003",null,"Společnost pro rozvoj Humpolecka-členský příspěvek",500]
["3699","5179",null,"0369900004",null,"Svaz měst a obcí ČR-členský příspěvek",40000]
["3699","5179",null,"0369900005",null,"Sdružení obcí Vysočiny-členský příspěvek",77000]
["3699","5179",null,"0369900006",null,"Národní síť zdravých měst-členský příspěvek",27000]
["3699","5212",null,"0369900002",null,"Dotace-soc.sl.-Neuber Jaromír (pojízdná prodejna-provoz)",24500,"Z"]
["3699","5329",null,"0369900007",null,"Svazek obcí mikroregionu Zálesí-členský příspěvek",75187]
["Celkem za oddíl 36  - Bydlení, komunální služby a územní rozvoj",null,null,null,null,null,{"$f":"SUM(G289:G400)","v":64860187},"Z"]
["3722","5139",null,"0372200001",null,"Sběr a svoz PDO-nákup kontejnerů a košů, materiál",200000]
["3722","5169",null,"0372200002",null,"Sběr a svoz PDO-svoz odpadů (popelnice)-SOMPO",9900000]
["3722","5169",null,"0372200003",null,"Sběr a svoz PDO-sběr odpadů",3800000]
["3722","5169",null,"0372200004",null,"Sběr a svoz PDO-svoz košů",1500000]
["3722","5169",null,"0372200005",null,"PDO-provoz uzavřené skládky odpadů",180000]
["3722","5169",null,"0372200007",null,"PDO-odvoz a drcení sutě",50000]
["3722","5171",null,"0372200015",null,"Stání-opravy,drobná údržba",50000]
["3722","5192",null,"0372200018",null,"D2D nádoby",50000]
["3725","5154",null,"0372500003",null,"Kompostárna-elektrická energie",280000]
["3725","5163",null,"0372500004",null,"Kompostárna-pojištění strojů",40000]
["3725","5169",null,"0372500005",null,"Kompostárna-provoz",5000000]
["3725","5169",null,"0372500010",null,"Odměna za vytříděné složky odpadu",3000000]
["3725","5171",null,"0372500001",null,"Kompostárna-opravy strojní,stání kontejneru",100000]
["3733","5169",null,"0373300001",null,"Monitoring kvality vody a půdy",80000]
["3744","5169",null,"0374400001",null,"Srážkoměrná stanice-údržba",160000]
["3744","5169",null,"0374400004",null,"Povodňový plán-údržba",60000]
["3745","5137",null,"0374500065",null,"Péče o vzhled obce-květináče",150000]
["3745","5166",null,"0374500004",null,"Projekty na  výsadbu zeleně",60000]
["3745","5169",null,"0374500005",null,"Veřejná zeleň-údržba",5500000]
["3745","5169",null,"0374500006",null,"Veřejná zeleň-lesopark-údržba",200000]
["3745","5169",null,"0374500007",null,"Veřejná zeleň-park Podhrad-údržba",200000]
["3745","5169",null,"0374500021",null,"Veřejná zeleň-úklid listí",1200000]
["3745","5169",null,"0374500026",null,"Veřejná zeleň-sečení",4100000]
["3745","5169",null,"0374500030",null,"Veřejná zeleň-údržba v místních částech",80000]
["3745","5169",null,"0374500033",null,"Veřejná zeleň-park LTRN-údržba",200000]
["3745","5169",null,"0374500035",null,"Veřejná zeleň-ošetření vzrostlých stromů",200000]
["3745","5169",null,"0374500036",null,"Veřejná zeleň-ošetření stromů Stromovka-SFŽP+administrace",30000]
["3745","5169",null,"0374500084",null,"Park Stromovka-údržba",400000]
["3745","5169",null,"0374500088",null,"Veřejná zeleň-sečení lesopark Discgolf",250000]
["3745","5169",null,"0374500102",null,"Veřejná zeleň-výsadky u zálivů kontejn.stání",100000]
["3745","5169",null,"0374500107",null,"Veřejná zeleň-realizace projektů výsadeb",300000]
["3745","5171",null,"0374500005",null,"Veřejná zeleň-údržba",50000]
["3745","5171",null,"0374500040",null,"Péče o vzhled obce-lavičky-opravy a doplnění",200000]
["3745","5171",null,"0374500108",null,"Parčík ul. Jihlavská-údržba",50000]
["3749","5169",null,"0374900001",null,"Ochrana přírody-posudky na ochranu životního prostředí",80000]
["3749","5169",null,"0374900002",null,"Označení památných stromů",30000]
["3749","5169",null,"0374900003",null,"Ochrana jírovců",50000]
["3749","5169",null,"0374900004",null,"Likvidace černých skládek",50000]
["3749","5169",null,"0374900006",null,"Ochrana přírody-Naučná stezka Březina",20000]
["3749","5171",null,"0374900006",null,"Ochrana přírody-Naučná stezka Březina",40000]
["3749","5901",null,"0374900010",null,"Rezerva-zlepšení kvality ovzduší-dotace",500000]
["Celkem za oddíl 37 - Ochrana životního prostředí",null,null,null,null,null,{"$f":"SUM(G402:G442)","v":38490000},"Z"]
["3900","5139",null,"0000003900",null,"Místní agenda 21-materiál",31000]
["3900","5164",null,"0000003900",null,"Místní agenda 21-nájemné",7000]
["3900","5169",null,"0000003900",null,"Místní agenda 21-služby",30000]
["3900","5175",null,"0000003900",null,"Místní agenda 21-pohoštění",2000]
["Celkem za oddíl 39 - Ostatní činnosti související se službami pro obyvatelstvo",null,null,null,null,null,{"$f":"SUM(G444:G447)","v":70000},"Z"]
["4341","5169",null,"0434100001",null,"Sociální služby-azylové ubytování",10000]
["4341","5169",null,"0434100002",null,"Sociální služby-sociálně právní ochrana dětí",5000]
["4350","5223",null,"0435000001",null,"Dotace-Domov bl. Bronislavy (provoz)",350000,"Z"]
["4351","5223",null,"0435100002",null,"Dotace-Obl.charita Jihlava (Diecéze Brno)-registr.soc.terénní s.-U Větrníku",75800,"Z"]
["4351","5223",null,"0435100004",null,"Dotace-Oblastní charita Havlíčkův Brod -neregistr.soc.služby",127500,"Z"]
["4351","5223",null,"0435100005",null,"Dotace-Oblastní charita Havlíčkův Brod -dobrovolnictví",10800,"Z"]
["4351","5223",null,"0435100011",null,"Dotace-Oblastní charita HB-registr.soc.služby-Astra",596900,"Z"]
["4351","5223",null,"0435100012",null,"Dotace-Oblastní charita HB-registr.soc.služby-Charitní pečovat.sl.",1023300,"Z"]
["4351","5223",null,"0435100013",null,"Dotace-Oblastní charita HB-registr.soc.služby-Charitní domov",41700,"Z"]
["4351","5223",null,"0435100014",null,"Dotace-Oblastní charita HB-registr.soc.služby-Soc.terap.dílna",121300,"Z"]
["4351","5223",null,"0435100015",null,"Dotace-Oblastní charita HB-registr.soc.služby-SAS Šipka",256700,"Z"]
["4351","5223",null,"0435100016",null,"Dotace-Oblastní charita HB-registr.soc.služby-Středisko rané péče",351000,"Z"]
["4351","5223",null,"0435100017",null,"Dotace-Oblastní charita HB-registr.soc.služby-Centrum osobní asistence",50200,"Z"]
["4351","5223",null,"0435100018",null,"Dotace-Oblastní charita HB-registr.soc.služby-Domácí hospic.péče",40700,"Z"]
["4351","5223",null,"0435100019",null,"Dotace-Oblastní charita HB-registr.soc.služby-Občanská poradna",46200,"Z"]
["4351","5223",null,"0435100021",null,"Dotace-Oblastní charita HB-registr.soc.služby-nízkoprah.zaříz.pro děti a mládež",388300,"Z"]
["4359","5169",null,"0435900001",null,"Festival sociál.služeb FESST-služby",25000]
["4359","5175",null,"0435900001",null,"Festival sociál.služeb FESST-pohoštění",25000]
["4371","5222",null,"0437100001",null,"Dotace-Společnost pro ranou péči ČB(provoz)-registr.soc.sl.,raná péče",10500,"Z"]
["4371","5222",null,"0437100002",null,"Dotace-Jimedis,z.s. Jihlava neregistr.soc.služba pro rodiny s dětmi",5000,"Z"]
["4376","5222",null,"0437600002",null,"Dotace-Fokus H.Brod (činnost)-dobrovolnictví",36200,"Z"]
["4376","5222",null,"0437600003",null,"Dotace-Fokus H.Brod(činnost)-registr.soc.služby-Komunitní tým Pelhřimov",28700,"Z"]
["4376","5222",null,"0437600004",null,"Dotace-Fokus H.Brod(činnost)-registr.soc.služby-Centrum duševního zdraví",3100,"Z"]
["4376","5222",null,"0437600005",null,"Dotace-Fokus H.Brod(činnost)-registr.soc.služby-Tým podpory zaměstnávání",4200,"Z"]
["4379","5221",null,"0437900001",null,"Dotace-Háta o.p.s. (registr.sociální služby)",33000,"Z"]
["4379","5222",null,"0437900003",null,"Dotace-Potravinová banka Ledeč (sociální služby)",22200,"Z"]
["4379","5222",null,"0437900006",null,"Dotace-Medou z.s. (provoz)-registr.soc.sl.",482300,"Z"]
["4379","5222",null,"0437900007",null,"Dotace-Centrum pro zdravotně postižené (konzultační dny)registr.soc.sl.",13000,"Z"]
["4379","5222",null,"0437900009",null,"Dotace-Spolek pro lůžk.hospic Mezi stromy,z.s.HB(psychoterapeut)",18800,"Z"]
["4379","5222",null,"0437900013",null,"Dotace-Medou z.s.-registr.soc.sl.-sociální rehabilitace",300000,"Z"]
["4379","5222",null,"0437900014",null,"Dotace-Střed Třebíč-reg.soc.sl.-telef.krizová pomoc",5000,"Z"]
["4379","5222",null,"0437900015",null,"Dotace-Integrační centrum Sasov-reg.soc.sl.-odborné poradenství",20000,"Z"]
["4379","5222",null,"0437900016",null,"Dotace-Integrační centrum Sasov-reg.soc.sl.-denní stacionář",8300,"Z"]
["4379","5223",null,"0437900010",null,"Dotace-Oblastní charita Diecéze Brno-registr.soc.terénní sl. AL PASO",4800,"Z"]
["Celkem za oddíl 43 - Sociální služby",null,null,null,null,null,{"$f":"SUM(G449:G482)","v":4540500},"Z"]
["5272","5132",null,"0000005270",null,"Civilní připravenost-krizové stavy-ochranné pomůcky",5000]
["5272","5901",null,"0527200001",null,"Civilní připravenost-rezerva na řešení krizí",100000]
["5273","5137",null,"0000005270",null,"Civilní připravenost-krizové stavy-DDHM",30000]
["5273","5162",null,"0000005270",null,"Civilní připravenost-krizové stavy-služby elektronických komunikací",35000]
["5273","5171",null,"0000005270",null,"Civilní připravenost-krizové stavy-opravy a udržování",100000]
["5273","5499",null,"0000005270",null,"Civilní připravenost-krizové stavy-ostatní neinv.transfery obyvatelstvu",17000]
["Celkem za oddíl 52 - Civilní připravenost na krizové stavy",null,null,null,null,null,{"$f":"SUM(G484:G489)","v":287000},"Z"]
["5311","5137",null,"0000005311",null,"Kamerový systém-DDHM",40000]
["5311","5154",null,"0000005311",null,"Kamerový systém-elektrická energie",150000]
["5311","5164",null,"0000005311",null,"Kamerový systém-nájemné",50000]
["5311","5169",null,"0000005311",null,"Kamerový systém-služby",180000]
["5311","5171",null,"0000005311",null,"Kamerový systém-opravy a udržování",400000]
["Celkem za oddíl 53 - Bezpečnost a veřejný pořádek",null,null,null,null,null,{"$f":"SUM(G491:G495)","v":820000},"Z"]
["5512","5019",null,"0000005512",null,"SDH-ostatní platy",30000]
["5512","5039",null,"0000005512",null,"SDH-ostatní povinné pojistné",7000]
["5512","5132",null,"0000005512",null,"SDH-ochranné pomůcky",45000]
["5512","5134",null,"0000005512",null,"SDH-prádlo, oděv, obuv",45000]
["5512","5136",null,"0000005512",null,"SDH-knihy, tisk",1000]
["5512","5137",null,"0000005512",null,"SDH-DDHM",150000]
["5512","5139",null,"0000005512",null,"SDH-materiál",120000]
["5512","5151",null,"0000005512",null,"SDH-voda",70000]
["5512","5153",null,"0000005512",null,"SDH-plyn",900000]
["5512","5154",null,"0000005512",null,"SDH-elektrická energie",220000]
["5512","5156",null,"0000005512",null,"SDH-PHM",175000]
["5512","5161",null,"0000005512",null,"SDH-poštovní služby",4000]
["5512","5162",null,"0000005512",null,"SDH-služby elektr.komunikací",3000]
["5512","5163",null,"0000005512",null,"SDH-služby peněžních ústavů",10000]
["5512","5167",null,"0000005512",null,"SDH-školení a vzdělávání",40000]
["5512","5168",null,"0000005512",null,"SDH-zpracování dat",3000]
["5512","5169",null,"0000005512",null,"SDH-služby ostatní",40000]
["5512","5171",null,"0000005512",null,"SDH-opravy a udržování",100000]
["5512","5173",null,"0000005512",null,"SDH-cestovné",3000]
["5512","5175",null,"0000005512",null,"SDH-pohoštění",10000]
["5512","5222",null,"0551200001",null,"Dotace C1-SDH Humpolec (nájemné)",115000,"Z"]
["5512","5222",null,"0551200002",null,"Dotace C1-SDH Kletečná (nájemné)",31500,"Z"]
["5512","5222",null,"0551200003",null,"Dotace C1-SDH Hněvkovice (nájem,činnost)",72000,"Z"]
["5512","5222",null,"0551200005",null,"Dotace C1-SDH Světlice (nájem,činnost)",102000,"Z"]
["5512","5222",null,"0551200007",null,"Dotace C1-SDH Petrovice (nájem)",19200,"Z"]
["Celkem za oddíl 55 - Požární ochrana a IZS",null,null,null,null,null,{"$f":"SUM(G497:G521)","v":2315700},"Z"]
["6112","5019",null,"0000006112",null,"Zastupitelstvo města-ostatní platy",10000]
["6112","5023",null,"0000006112",null,"Zastupitelstvo města-odměny členů ZM",4087000]
["6112","5031",null,"0000006112",null,"Zastupitelstvo města-povinné sociální pojistné",713000]
["6112","5032",null,"0000006112",null,"Zastupitelstvo města-povinné zdravotní pojistné",370000]
["6112","5179",null,"0000006112",null,"Zastupitelstvo města-ostatní nákupy",15000]
["6118","5019",null,"0000098008","98008","Volba prezidenta ČR-ostatní platy",10000]
["6118","5021",null,"0000098008","98008","Volba prezidenta ČR-ostatní osobní výdaje",350000]
["6118","5031",null,"0000098008","98008","Volba prezidenta ČR-povinné sociální pojistné",10000]
["6118","5032",null,"0000098008","98008","Volba prezidenta ČR-povinné zdravotní pojistné",5000]
["6118","5039",null,"0000098008","98008","Volba prezidenta ČR-ostatní povinné pojistné",5000]
["6118","5132",null,"0000098008","98008","Volba prezidenta ČR-ochranné pomůcky",5000]
["6118","5139",null,"0000098008","98008","Volba prezidenta ČR-materiál",30000]
["6118","5164",null,"0000098008","98008","Volba prezidenta ČR-nájemné",30000]
["6118","5169",null,"0000098008","98008","Volba prezidenta ČR-služby ostatní",144000]
["6118","5173",null,"0000098008","98008","Volba prezidenta ČR-cestovné",5000]
["6171","5011",null,"0000006171",null,"Správa MěÚ-platy zaměstnanců",30306000]
["6171","5021",null,"0000006171",null,"Správa MěÚ-ostatní osobní výdaje",1699000]
["6171","5031",null,"0000006171",null,"Správa MěÚ-povinné sociální pojištění",7731000]
["6171","5032",null,"0000006171",null,"Správa MěÚ-povinné zdravotní pojištění",2806000]
["6171","5038",null,"0000006171",null,"Správa MěÚ-povinné pojistné na úrazové pojištění",130000]
["6171","5041",null,"0000006171",null,"Správa MěÚ-odměny za užití duševního vlastnictví",4000]
["6171","5042",null,"0000006171",null,"Správa MěÚ-odměny za užití počítačových programů",2100000]
["6171","5132",null,"0000006171",null,"Správa MěÚ-ochranné pomůcky",20000]
["6171","5134",null,"0000006171",null,"Správa MěÚ-prádlo, oděv, obuv",30000]
["6171","5136",null,"0000000202",null,"Osadní výbory-knihy, učební pomůcky a tisk",5000]
["6171","5136",null,"0000006171",null,"Správa MěÚ-Knihy, učební pomůcky a tisk",60000]
["6171","5137",null,"0000000202",null,"Osadní výbory-DDHM",150000]
["6171","5137",null,"0000006171",null,"Správa MěÚ-DDHM",870000]
["6171","5139",null,"0000000202",null,"Osadní výbory-materiál",135000]
["6171","5139",null,"0000006171",null,"Správa MěÚ-materiál",700000]
["6171","5151",null,"0000000202",null,"Osadní výbory-voda",20000]
["6171","5151",null,"0000006171",null,"Správa MěÚ-voda",100000]
["6171","5152",null,"0000006171",null,"Správa MěÚ-teplo",20000]
["6171","5153",null,"0000006171",null,"Správa MěÚ-plyn",1200000]
["6171","5154",null,"0000000202",null,"Osadní výbory-elektrická energie",410000]
["6171","5154",null,"0000006171",null,"Správa MěÚ-elektrická energie",1350000]
["6171","5155",null,"0000000202",null,"Osadní výbory-pevná paliva",40000]
["6171","5156",null,"0000000202",null,"Osadní výbory-pohonné hmoty",5000]
["6171","5156",null,"0000006171",null,"Správa MěÚ-pohonné hmoty",80000]
["6171","5161",null,"0000006171",null,"Správa MěÚ-poštovní služby",900000]
["6171","5162",null,"0000000202",null,"Osadní výbory-služby elektronických komunikací",40000]
["6171","5162",null,"0000006171",null,"Správa MěÚ-služby elektronických komunikací",350000]
["6171","5163",null,"0000006171",null,"Správa MěÚ-služby peněžních ústavů",100000]
["6171","5164",null,"0000006171",null,"Správa MěÚ-nájemné",30000]
["6171","5166",null,"0000006171",null,"Správa MěÚ-konzultační, právní služby",400000]
["6171","5167",null,"0000006171",null,"Správa MěÚ-služby školení a vzdělávání",400000]
["6171","5167",null,"0617100010",null,"Správa MěÚ-projekt-efektivní a komunikativní úřad",250000]
["6171","5168",null,"0000000202",null,"Osadní výbory-zpracování dat a služby ICT",5000]
["6171","5168",null,"0000006171",null,"Správa MěÚ-zpracování dat a služby ICT",1905000]
["6171","5169",null,"0000000202",null,"Osadní výbory-služby ostatní",15000]
["6171","5169",null,"0000006171",null,"Správa MěÚ- služby ostatní",4800000]
["6171","5169",null,"0617100004",null,"Zpracování vizuálu města a PO",400000]
["6171","5171",null,"0000000202",null,"Osadní výbory-opravy a udržování",540000]
["6171","5171",null,"0000006171",null,"Správa MěÚ- opravy a udržování",500000]
["6171","5171",null,"0617100005",null,"Správa MěÚ-metropolitní síť",100000]
["6171","5171",null,"0617100030",null,"Správa MěÚ-oprava severní fasády čp 300 a střešních prvků (PD)",300000]
["6171","5172",null,"0000006171",null,"Správa MěÚ-podlimitní programové vybavení",160000]
["6171","5173",null,"0000006171",null,"Správa MěÚ-cestovné",60000]
["6171","5175",null,"0000000202",null,"Osadní výbory-pohoštění",180000]
["6171","5175",null,"0000006171",null,"Správa MěÚ-pohoštění",200000]
["6171","5179",null,"0000006171",null,"Správa MěÚ-ostatní nákupy",186000]
["6171","5192",null,"0000006171",null,"Správa MěÚ-poskytnuté náhrady",50000]
["6171","5194",null,"0000006171",null,"Správa MěÚ-věcné dary",250000]
["6171","5195",null,"0000006171",null,"Správa MěÚ-odvod za zdravotně postižené",80000]
["6171","5362",null,"0000006171",null,"Správa MěÚ-platby daní a poplatků",25000]
["6171","5424",null,"0000006171",null,"Správa MěÚ-náhrady mezd v době nemoci",450000]
["6171","5499",null,"0000006171",null,"Správa MěÚ-ostatní neinv. transfery obyvatelstvu",1200000]
["6171","5660",null,"0000006171",null,"Správa MěÚ-neinv.půjčené prostředky obyvatelstvu-půjčky ze SF",40000]
["Celkem za oddíl 61 - Územní samospráva",null,null,null,null,null,{"$f":"SUM(G523:G590)","v":69676000},"Z"]
["6221","5137",null,"0000006221",null,"Humanitární zahraniční pomoc přímá-DDHM",30000]
["6221","5139",null,"0000006221",null,"Humanitární zahraniční pomoc přímá-materiál",20000]
["6221","5151",null,"0000006221",null,"Humanitární zahraniční pomoc přímá-studená voda",50000]
["6221","5152",null,"0000006221",null,"Humanitární zahraniční pomoc přímá-teplo",40000]
["6221","5153",null,"0000006221",null,"Humanitární zahraniční pomoc přímá-plyn",20000]
["6221","5154",null,"0000006221",null,"Humanitární zahraniční pomoc přímá-elektrická energie",60000]
["6221","5169",null,"0000006221",null,"Humanitární zahraniční pomoc přímá-služby ostatní",150000]
["6221","5194",null,"0000006221",null,"Humanitární zahraniční pomoc přímá-věcné dary",20000]
["6221","5901",null,"0000006221",null,"Humanitární zahraniční pomoc přímá-nespecifik.rezervy",210000]
["Celkem za oddíl 62 - Jiné veřejné služby a činnosti",null,null,null,null,null,{"$f":"SUM(G592:G600)","v":600000},"Z"]
["6310","5141",null,"0000006300",null,"Úroky z investičních úvěrů",3000000]
["6310","5163",null,"0000006300",null,"Finanční operace-bankovní poplatky",300000]
["6320","5163",null,"0000006300",null,"Finanční operace-komerční pojištění",1200000]
["6399","5362",null,"0000006300",null,"Finanční operace-DPH",8000000]
["6399","5365",null,"0000006300",null,"Finanční operace-daň z příjmů právnických osob za obec",15000000]
["6399","5901",null,"0639900001",null,"Rezerva pro poskytnutí darů v gesci RM",200000,"Z"]
["Celkem za oddíl 63 - Finanční operace",null,null,null,null,null,{"$f":"SUM(G602:G607)","v":27700000},"Z"]
["6402","5364",null,"0000006118",98008,"Finanční vypořádání dotací-volba prezidenta ČR",140219.04]
["6402","5364",null,"0000006400",null,"Finanční vypořádání dotací-výkon soc.práce",25367]
["6402","5364",null,"0622100003",null,"Finanční vypořádání dotací-Humpolec pomáhá při integr.držitelů dočas.ochrany",50787]
["6402","5366",null,"0323300001",null,"Fin.vypoř.dotací-SVČ-neinv.průtok.dotace Míčkování",5843]
["6402","5366",null,"0341200117",null,"Finanční vypořádání dotací-OÚE-Hřiště ve Světlici",52456]
["6409","5363",null,"0000006409",null,"Ostatní činnosti-úhrady sankcí",19050]
["6409","5909",null,"0000006409",null,"Ostatní činnosti-ostatní výdaje",12494]
["Celkem za oddíl 64 - Ostatní činnosti",null,null,null,null,null,{"$f":"SUM(G609:G615)","v":306216.04000000004},"Z"]
["Celkem za třídu Běžné výdaje",null,null,null,null,null,{"$f":"SUM(G616,G608,G601,G591,G522,G496,G490,G483,G448,G443,G401,G288,G222,G176,G172,G160,G141,G116,G112)","v":363339903.03999996},"Z"]
[]
[]
["ODPA","POL","ORJ","ORG","NZUZ","Popis","Schválený rozpis rozpočtu (Kč)"]
["1036","6119",null,"0103600003",null,"Projekt-Lesní hosp.plán město Humpolec",260000]
["1036","6119",null,"0103600004",null,"Projekt-Lesní hosp.osnovy Humpolecko",740000]
["Celkem za oddíl 10 - Zemědělství a lesní hospodářství",null,null,null,null,null,{"$f":"SUM(G621:G622)","v":1000000},"Z"]
["2212","6121",null,"0221200007",null,"Projekty komunikací",1000000]
["2212","6121",null,"0221200122",null,"MK Pelhřimovská (PD)",500000]
["2212","6121",null,"0221200125",null,"MK Mánesova (PD)",400000]
["2212","6121",null,"0221200130",null,"MK 5.května (PD)",150000]
["2212","6121",null,"0221200131",null,"MK Hradská (PD)",150000]
["2212","6121",null,"0221200132",null,"Příprava rekonstr.mostu Kletečná (PD)",150000]
["2212","6121",null,"0221200159",null,"MK Vosmíkova (PD)",150000]
["2219","6121",null,"0221900001",null,"Studie a projekty chodníků",500000]
["2219","6121",null,"0221900021",null,"Chodník(lávka)ul. Lužická (zapojení FBI 4.500 tis. Kč)",10000000]
["2219","6121",null,"0221900043",null,"Chodník Hněvkovice",6500000]
["2219","6121",null,"0221900076",null,"MK Hálkova (PD)",200000]
["2219","6121",null,"0221900078",null,"Chodník Světlice část A",2800000]
["2219","6121",null,"0221900081",null,"Vnitroblok Hálkova x Lnářská (studie)",250000]
["2219","6121",null,"0221900082",null,"Stoupací pruh I/34",2000000]
["2219","6121",null,"0221900083",null,"Prostor mezi kinem a obchodním domem (studie)",250000]
["2219","6121",null,"0221900084",null,"Zastávka Světlice (stavba)",600000]
["2219","6121",null,"0221900085",null,"Zastávka Kletečná (stavba)",600000]
["Celkem za oddíl 22 - Doprava",null,null,null,null,null,{"$f":"SUM(G624:G640)","v":26200000},"Z"]
["2310","6121",null,"0231000045",null,"Posílení vodního zdroje Lhotka-napojení vrtané studny",1000000]
["2310","6121",null,"0231000054",null,"Plán obnovy-vodovod ul.Pražská-Na Kasárnách",7500000]
["2310","6121",null,"0231000055",null,"Vodovod Plačkov,poz.parc.č. 470/5 a 464/1 (PD)",150000]
["2310","6121",null,"0231000056",null,"Vodovod Pelhřimovská (PD)",250000]
["2321","6121",null,"0232100048",null,"Dešťová kanalizace ul. Lužická",2500000]
["2321","6121",null,"0232100052",null,"Plán obnovy-kanalizace ul.Pražská-Na Kasárnách",23200000]
["2321","6121",null,"0232100053",null,"Dešťová a splašk.kanalizace ZTV Blanická-Na Závodí-Spojovací (PD)",100000]
["2321","6121",null,"0232100054",null,"ČOV Humpolec (PD)",6000000]
["2321","6121",null,"0232100055",null,"Kanalizace Plačkov,poz.parc.č. 470/5 a 464/1 (PD)",150000]
["2321","6121",null,"0232100056",null,"Kanalizace Pelhřimovská (PD)",250000]
["Celkem za oddíl 23 - Vodní hospodářství",null,null,null,null,null,{"$f":"SUM(G642:G651)","v":41100000},"Z"]
["3111","6121",null,"0311100001",null,"MŠ Podhrad (zapojení FIPO 3.000,0 tis. Kč)",55000000]
["3111","6121",null,"0311100001",null,"MŠ Podhrad",3153000]
["3111","6122",null,"0311100004",null,"Vnitřní vybavení MŠ Podhrad",5100000]
["3111","6351",null,"0000000301",null,"Investiční příspěvek MŠ (chodníky MŠ Na Skalce 3.etapa)",600000,"Z"]
["3111","6351",null,"0000000301",null,"Investiční příspěvek MŠ (kuchyňský robot šk.jíd.Na Skalce)",250000]
["3111","6351",null,"0000000301",null,"Investiční příspěvek MŠ (automobil na dopravu stravy MŠ Podhrad)",500000]
["3113","6351",null,"0000000321",null,"Investiční příspěvek ZŠ Hálkova (mlatové chodníčky-úprava zahrady Školní ul.)",100000,"Z"]
["3113","6351",null,"0000000322",null,"Investiční příspěvek ZŠ Hradská (rekonstrukce cvičné kuchyně)",500000,"Z"]
["31 - Vzdělávání",null,null,null,null,null,{"$f":"SUM(G653:G660)","v":65203000},"Z"]
["3233","6351",null,"0000000325",null,"Investiční příspěvek SVČ (rekonstrukce kolejiště-kroužek železniční modeláři)",500000]
["32 - Vzdělávání",null,null,null,null,null,{"$f":"SUM(G662)","v":500000},"Z"]
["3319","6121",null,"0331900018",null,"Spolkový dům č.p.59-výkup (doplatek)",14050000]
["3319","6351",null,"0000000376",null,"Investiční příspěvek MěKIS (nová národopisná expozice-PD)",600000,"Z"]
["3319","6351",null,"0000000376",null,"Investiční příspěvek MěKIS (venkovní bibliobox)",200000]
["3319","6351",null,"0000000376",null,"Investiční příspěvek MěKIS (redigitalizace a ozvučení kina)",3880000]
["3322","6121",null,"0332200022",null,"Hrad Orlík-zastropení sklepení",400000]
["3326","6121",null,"0332600031",null,"Kaplička Vilémov zvonění-elektrifikace",150000]
["Celkem za oddíl 33 - Kultura, církve",null,null,null,null,null,{"$f":"SUM(G664:G669)","v":19280000},"Z"]
["3412","6121",null,"0341200015",null,"Městská hřiště - herní prvky",600000]
["3412","6121",null,"0341200091",null,"Fotbal.stadion-rekonstr.stupňů a plochy",10000000]
["3412","6121",null,"0341200096",null,"Hřiště Hněvkovice (PD)",250000]
["3412","6121",null,"0341200097",null,"Hřiště Krasoňov (PD)",250000]
["3412","6121",null,"0341200102",null,"Zakrytí mantinelů ZS",200000]
["3412","6121",null,"0341200114",null,"Rekonstrukce šaten fotb.stadion",2200000]
["3412","6121",null,"0341200116",null,"Pumpskatetrack dráha-plocha po LC",750000]
["3412","6121",null,"0341200126",null,"Fotbal.stadion-rekonstr.zázemí (studie)",250000]
["3412","6121",null,"0341200127",null,"Rekonstrukce sportovní haly TJ JISKRA (PD)",1000000]
["3412","6121",null,"0341200129",null,"Dětské hřiště Smetanova-opatření proti vandalismu (oplocení)",500000]
["3412","6121",null,"0341200133",null,"Tenisová hala Hradská-výměna osvětlení (LED)",1500000]
["3412","6122",null,"0341200121",null,"Vybavení sportovišť-místní části",50000]
["3412","6122",null,"0341200122",null,"Vybavení sportovišť-město",50000]
["3412","6122",null,"0341200128",null,"ZS vstupní dveře pokladna",200000]
["3412","6122",null,"0341200130",null,"Rezervní čerpadlo Žabák",200000]
["3412","6122",null,"0341200131",null,"Vybavení šaten fotb.stadion",500000]
["3412","6122",null,"0341200132",null,"Žabák digitální ukazatel tepl.vody,ovzduší,času",200000]
["Celkem za oddíl 34 - Sport a zájmová činnost",null,null,null,null,null,{"$f":"SUM(G671:G687)","v":18700000},"Z"]
["3612","6121","0010","0000001903",null,"BHS-celk.rekonstrukce bytů čp.19",600000]
["3612","6121","0010","0000007303",null,"BHS-celk.rekonstrukce bytů čp.73",600000]
["3612","6121","0010","0000007403",null,"BHS-celk.rekonstrukce bytů čp.74",400000]
["3612","6121","0010","0000073004",null,"BHS-výtah Školní čp.730 (PD)",3000000]
["3612","6121","0010","0000073005",null,"BHS-odizol.zdiva čp.730",500000]
["3612","6121","0010","0000131303",null,"BHS-celk.rekonstrukce bytů čp.1313",600000]
["3612","6121","0010","0000132603",null,"BHS-celk.rekonstrukce bytů čp.1326",600000]
["3612","6121","0010","0000160703",null,"BHS-celk.rekonstrukce bytů čp.1607",600000]
["3612","6121",null,"0361200013",null,"Byt.hosp.-bytový dům Hálkova (PD)",3500000]
["3612","6121",null,"0361200016",null,"Byt.hosp.-ZTV Podkova (PD)",800000]
["3613","6121",null,"0361300148",null,"Nebyt.hosp.-čp.803 LTRN-izolace zdiva",250000]
["3613","6121",null,"0361300175",null,"Nebyt.hosp.-čp.885-rekonstrukce ordinace",500000]
["3613","6121",null,"0361300185",null,"Nebyt.hosp.-rekonstrukce budov OV (studie)",500000]
["3613","6121",null,"0361300186",null,"Nebyt.hosp.-budova u hřiště v Plačkově (studie)",400000]
["3613","6121",null,"0361300187",null,"Nebyt.hosp.-výměna oken-chata Bělice",50000]
["3631","6121",null,"0363100012",null,"VO nové akce (PD)",100000]
["3631","6121",null,"0363100043",null,"VO Hněvkovice",1500000]
["3631","6121",null,"0363100059",null,"VO nové akce",600000]
["3631","6121",null,"0363100062",null,"VO ul.Lužická",2500000]
["3631","6121",null,"0363100065",null,"VO Kletečná",250000]
["3632","6121",null,"0363200016",null,"Pohřebnictví-hřbitov, UH-rekonstrukce cest",1000000]
["3632","6121",null,"0363200022",null,"Pohřebnictví-přístřešek+cesta-čp.934 SOS (studie)",150000]
["3632","6122",null,"0363200026",null,"Pohřebnictví-kuch.linka čp.934 SOS",50000]
["3635","6119",null,"0363500015",null,"Územní plán-příprava nového ÚP",2500000]
["3639","6130",null,"0363900020",null,"Komunální služby-výkup nemovitostí",10000000]
["Celkem za oddíl 36  - Bydlení, komunální služby a územní rozvoj",null,null,null,null,null,{"$f":"SUM(G689:G713)","v":31550000},"Z"]
["3725","6121",null,"0372500011",null,"Kompostárna-stav.úpravy plochy, likvidace cesty",6000000]
["3745","6119",null,"0374500104",null,"Digitálně technická mapa města-doplnění pasportu zeleně",500000]
["3745","6121",null,"0374500049",null,"Veř.zeleň-vodní plocha u Dvoráku",700000]
["3745","6121",null,"0374500080",null,"Péče o vzhled obce-protihluková stěna Okružní-Stodůlky",30000]
["3745","6121",null,"0374500083",null,"Péče o vzhled obce-protihluková stěna u D1",300000]
["3745","6121",null,"0374500091",null,"Veřejná zeleň-parkové úpravy Plačkov",100000]
["3745","6121",null,"0374500105",null,"Veřejná zeleň-pěšina Lnářská",140000]
["3745","6121",null,"0374500106",null,"Veřejná zeleň-závlaha Stromovka",300000]
["Celkem za oddíl 37 - Ochrana životního prostředí",null,null,null,null,null,{"$f":"SUM(G715:G722)","v":8070000},"Z"]
["5273","6122",null,"0527300001",null,"OÚE-Rozšíř.digit.povodň.plánu a varovného inf.systému pro město Humpolec",10000000]
["Celkem za oddíl 52 - Civilní připravenost na krizové stavy",null,null,null,null,null,{"$f":"SUM(G724)","v":10000000},"Z"]
["5311","6121",null,"0531100003",null,"Kamerový systém-nové kamery",100000]
["5311","6122",null,"0531100003",null,"Kamerový systém-nové kamery",600000]
["Celkem za oddíl 53 - Bezpečnost a veřejný pořádek",null,null,null,null,null,{"$f":"SUM(G726:G727)","v":700000},"Z"]
["5512","6121",null,"0551200010",null,"Novostavba budovy SDH Humpolec",1200000]
["Celkem za oddíl 55 - Požární ochrana a IZS",null,null,null,null,null,{"$f":"SUM(G729)","v":1200000},"Z"]
["6171","6111",null,"0617100022",null,"Správa MěÚ-Portál občana",150000]
["6171","6111",null,"0617100031",null,"Správa MěÚ-DMS program-St.úřad",650000]
["6171","6119",null,"0617100028",null,"Správa MěÚ-zhotovení www města",400000]
["6171","6119",null,"0617100032",null,"Správa MěÚ-infokiosek u Infocentra Humpolec",105000]
["6171","6121",null,"0617100005",null,"Správa MěÚ-metropolitní síť",1000000]
["6171","6123",null,"0617100033",null,"Správa MěÚ-služební auto",600000]
["6171","6125",null,"0617100009",null,"Správa MěÚ-výpočetní technika",610000]
["Celkem za oddíl 61 - Územní samospráva",null,null,null,null,null,{"$f":"SUM(G731:G737)","v":3515000},"Z"]
["Celkem za třídu Kapitálové výdaje",null,null,null,null,null,{"$f":"SUM(G738,G730,G728,G725,G723,G714,G688,G670,G663,G661,G652,G641,G623)","v":227018000},"Z"]
[]
[]
["Celkem Výdaje",null,null,null,null,null,590357903.03999996]
[]
[]
["Financování"]
["ODPA","POL","ORJ","ORG","NZUZ","Popis","Schválený rozpis rozpočtu (Kč)"]
[null,"8115",null,null,null,"Financování-zapojení volných finančních prostředků ZBÚ-město",182078584.68000001]
[null,"8115",null,null,null,"Financování-zapojení volných finančních prostředků vodní hospodářství",18232132.170000002]
[null,"8115",null,null,null,"Financování - zapojení vlastních fin. prostř.-bytový účet",5770000]
[null,"8115",null,null,null,"Financ.-zapojení fin.prostředků FBI (inv.akce Chodník (lávka) ul. Lužická)",4500000]
[null,"8115",null,null,null,"Financování-zapojení vlastních fin. prostředků Fond investic PO (inv.akce MŠ Podhrad)",3000000]
[null,"8115",null,null,null,"Financování-odvod finančních prostředků do FBI",-300000]
[null,"8115",null,null,null,"Financování-odvod odpisů do Fondu investic PO",-3428000]
[null,"8115",null,null,null,"Financování-zapojení přebytků SF (ostatní změna stavu)",21000]
[null,"8117",null,null,null,"Financování-aktivní krátkodobé operace řízení likvidity-příjmy",167000000]
[null,"8118",null,null,null,"Financování-aktivní krátkodobé operace řízení likvidity-výdaje",-167000000]
[null,"8124",null,null,null,"Uhrazené splátky přijatých úvěrů-ČS,a.s. (splacení úvěru)",-11085025.039999999,"Z"]
[null,"8124",null,null,null,"Uhrazené splátky přijatých úvěrů-ČSOB, a.s.(mimořádná splátka)",-20465260,"Z"]
[null,"8124",null,null,"106590501","Uhrazené splátky dlouhodobých přijatých půjčených prostředků-SFŽP",-2280942.3199999998,"Z"]
["Celkem za třídu Financování",null,null,null,null,null,176042489.49000001,"Z"]
[]
[]
["Celkem Příjmy + Financování",null,null,null,null,null,{"$f":"G760+G98","v":590357903.03999996}]

{"sheet":"List1","index":1,"n_rows":0,"n_cols":0,"rows_kept":0,"cut":false,"hidden":false,"merged":[]}